[Event "Limburg Open 2022"]
[Site "Maastricht"]
[Date "2022.06.03"]
[Round "1.1"]
[White "Warmerdam, Max"]
[Black "Van Dijk, Harold"]
[Result "1-0"]
[ECO "A57"]
[WhiteElo "2613"]
[BlackElo "2259"]
[PlyCount "101"]
[EventDate "2022.06.03"]
[EventType "swiss"]
[EventRounds "7"]
[EventCountry "NED"]
[SourceTitle "Limburg Open"]
[Source "Limburg Open"]
[SourceDate "2022.06.06"]
[SourceVersion "7"]
[SourceVersionDate "2022.06.06"]
[SourceQuality "1"]
[TimeControl "7200+15"]

1. d4 {[%emt 0:00:23]} Nf6 {[%emt 0:00:18]} 2. c4 {[%emt 0:00:06]} c5 {[%emt 0:
00:43]} 3. d5 {[%emt 0:01:12]} b5 {[%emt 0:00:09]} 4. cxb5 {[%emt 0:00:07]} a6
{[%emt 0:00:16]} 5. e3 {[%emt 0:01:14]} e6 {[%emt 0:00:35]} 6. Nc3 {[%emt 0:01:
33]} exd5 {[%emt 0:00:17]} 7. Nxd5 {[%emt 0:11:09]} Bb7 {[%emt 0:00:34]} 8.
Nxf6+ {[%emt 0:01:03]} Qxf6 {[%emt 0:00:14]} 9. Nf3 {[%emt 0:00:21]} Bd6 {
[%emt 0:00:16]} 10. Bd2 {[%emt 0:12:54]} O-O {[%emt 0:05:42]} 11. Bc3 {[%emt 0:
00:27]} Qe7 {[%emt 0:00:33]} 12. b6 {[%emt 0:08:35]} Nc6 {[%emt 0:04:41]} 13.
Bc4 {[%emt 0:10:20]} Ne5 {[%emt 0:10:56]} 14. Bd5 {[%emt 0:01:52]} Rab8 {
[%emt 0:01:44]} 15. Bxb7 {[%emt 0:16:40]} Rxb7 {[%emt 0:02:45]} 16. Qd5 {
[%emt 0:00:48]} Nxf3+ {[%emt 0:00:51]} 17. gxf3 {[%emt 0:00:05]} Rxb6 {[%emt 0:
00:34]} 18. O-O-O {[%emt 0:00:31]} Qe6 {[%emt 0:04:12]} 19. f4 {[%emt 0:03:13]}
f6 {[%emt 0:05:27]} 20. h4 {[%emt 0:02:06]} Qxd5 {[%emt 0:05:57]} 21. Rxd5 {
[%emt 0:00:09]} Kf7 {[%emt 0:01:13]} 22. f5 {[%emt 0:09:02]} Rc6 {[%emt 0:07:
29]} 23. h5 {[%emt 0:01:12]} h6 {[%emt 0:01:22]} 24. Kc2 {[%emt 0:03:50]} Rb8 {
[%emt 0:02:48]} 25. Rhd1 {[%emt 0:00:46]} Ke7 {[%emt 0:00:21]} 26. Rg1 {
[%emt 0:00:49]} Kf7 {[%emt 0:00:47]} 27. f4 {[%emt 0:15:31]} Rb7 {[%emt 0:06:
10]} 28. Rgd1 {[%emt 0:00:39]} Ke7 {[%emt 0:00:20]} 29. R5d2 {[%emt 0:04:32]}
c4 {[%emt 0:06:01]} 30. Rg2 {[%emt 0:01:44]} Kf7 {[%emt 0:00:15]} 31. Rgd2 {
[%emt 0:00:06]} Ke7 {[%emt 0:00:12]} 32. Rg1 {[%emt 0:00:06]} Kf7 {[%emt 0:00:
12]} 33. Rdg2 {[%emt 0:00:04]} Bf8 {[%emt 0:00:21]} 34. e4 {[%emt 0:00:04]} Rb5
{[%emt 0:02:59]} 35. Rg6 {[%emt 0:04:18]} d6 {[%emt 0:06:14]} 36. e5 {[%emt 0:
00:12]} dxe5 {[%emt 0:00:36]} 37. fxe5 {[%emt 0:00:05]} Rd5 {[%emt 0:00:26]}
38. R1g4 {[%emt 0:01:08]} a5 {[%emt 0:05:30]} 39. a4 {[%emt 0:01:52]} Ke7 {
[%emt 0:02:49]} 40. Re4 {[%emt 0:01:19]} Kd7 {[%emt 0:03:49]} 41. Rd4 {[%emt 0:
03:33]} Rxd4 {[%emt 0:01:47]} 42. Bxd4 {[%emt 0:00:30]} Ke7 {[%emt 0:04:11]}
43. Bc3 {[%emt 0:01:05]} Kf7 {[%emt 0:01:40]} 44. Bxa5 {[%emt 0:02:29]} Ra6 {
[%emt 0:00:17]} 45. Bc3 {[%emt 0:00:05]} Rxa4 {[%emt 0:00:05]} 46. exf6 {
[%emt 0:00:02]} gxf6 {[%emt 0:00:36]} 47. Rxf6+ {[%emt 0:00:02]} Kg8 {[%emt 0:
02:12]} 48. Rg6+ {[%emt 0:00:06]} Kh7 {[%emt 0:00:30]} 49. Rc6 {[%emt 0:00:02]}
Ra1 {[%emt 0:00:16]} 50. Rc8 {[%emt 0:00:09]} Bd6 {[%emt 0:01:39]} 51. Rh8# {
[%emt 0:00:02]} 1-0

[Event "Limburg Open 2022"]
[Site "Maastricht"]
[Date "2022.06.03"]
[Round "1.2"]
[White "Wild, Achim"]
[Black "Donchenko, Alexander"]
[Result "0-1"]
[ECO "A06"]
[WhiteElo "2258"]
[BlackElo "2602"]
[PlyCount "50"]
[EventDate "2022.06.03"]
[EventType "swiss"]
[EventRounds "7"]
[EventCountry "NED"]
[SourceTitle "Limburg Open"]
[Source "Limburg Open"]
[SourceDate "2022.06.06"]
[SourceVersion "7"]
[SourceVersionDate "2022.06.06"]
[SourceQuality "1"]
[TimeControl "7200+15"]

1. Nf3 {[%emt 0:02:59]} d5 {[%emt 0:00:17]} 2. e3 {[%emt 0:00:09]} c5 {[%emt 0:
00:33]} 3. b3 {[%emt 0:00:11]} Nc6 {[%emt 0:00:21]} 4. Bb5 {[%emt 0:00:57]} f6
{[%emt 0:00:42]} 5. Bxc6+ {[%emt 0:02:37]} bxc6 {[%emt 0:00:03]} 6. O-O {
[%emt 0:13:06]} e5 {[%emt 0:02:18]} 7. d3 {[%emt 0:00:15]} Bd6 {[%emt 0:02:55]}
8. e4 {[%emt 0:03:28]} Ne7 {[%emt 0:04:35]} 9. Nc3 {[%emt 0:09:04]} Be6 {
[%emt 0:14:54]} 10. Ba3 {[%emt 0:01:33]} Ng6 {[%emt 0:01:02]} 11. Na4 {[%emt 0:
03:49]} Qe7 {[%emt 0:00:58]} 12. Qe1 {[%emt 0:04:10]} Bg4 {[%emt 0:09:08]} 13.
Nd2 {[%emt 0:01:31]} Nf4 {[%emt 0:00:14]} 14. f3 {[%emt 0:00:43]} Bd7 {[%emt 0:
01:46]} 15. Kh1 {[%emt 0:02:14]} O-O {[%emt 0:01:14]} 16. Qf2 {[%emt 0:03:41]}
Ne6 {[%emt 0:00:28]} 17. Rfe1 {[%emt 0:00:49]} f5 {[%emt 0:09:33]} 18. Bb2 {
[%emt 0:09:44]} Nd4 {[%emt 0:05:19]} 19. Rac1 {[%emt 0:09:28]} Rae8 {[%emt 0:
12:19]} 20. c3 {[%emt 0:16:49]} Ne6 {[%emt 0:01:10]} 21. Rcd1 {[%emt 0:00:14]}
Nf4 {[%emt 0:09:26]} 22. Qf1 {[%emt 0:00:07]} c4 {[%emt 0:04:08]} 23. dxc4 {
[%emt 0:01:58]} fxe4 {[%emt 0:02:29]} 24. c5 {[%emt 0:01:51]} Bb8 {[%emt 0:01:
12]} 25. fxe4 {[%emt 0:00:31]} Bg4 {[%emt 0:01:23]} 0-1

[Event "Limburg Open 2022"]
[Site "Maastricht"]
[Date "2022.06.03"]
[Round "1.3"]
[White "Gurevich, Mikhail"]
[Black "Baselmans, Luuk"]
[Result "1-0"]
[ECO "A28"]
[WhiteElo "2576"]
[BlackElo "2257"]
[PlyCount "105"]
[EventDate "2022.06.03"]
[EventType "swiss"]
[EventRounds "7"]
[EventCountry "NED"]
[SourceTitle "Limburg Open"]
[Source "Limburg Open"]
[SourceDate "2022.06.06"]
[SourceVersion "7"]
[SourceVersionDate "2022.06.06"]
[SourceQuality "1"]
[TimeControl "7200+15"]

1. c4 {[%emt 0:00:14]} e5 {[%emt 0:00:27]} 2. Nc3 {[%emt 0:00:14]} Nf6 {
[%emt 0:00:14]} 3. Nf3 {[%emt 0:00:09]} Nc6 {[%emt 0:00:22]} 4. a3 {[%emt 0:00:
07]} g6 {[%emt 0:01:41]} 5. d3 {[%emt 0:00:39]} Bg7 {[%emt 0:01:16]} 6. g3 {
[%emt 0:00:08]} O-O {[%emt 0:01:34]} 7. Bg2 {[%emt 0:00:06]} d5 {[%emt 0:02:57]
} 8. cxd5 {[%emt 0:01:31]} Nxd5 {[%emt 0:00:08]} 9. Bg5 {[%emt 0:01:55]} Nxc3 {
[%emt 0:03:20]} 10. bxc3 {[%emt 0:00:11]} Bf6 {[%emt 0:03:24]} 11. Bxf6 {
[%emt 0:05:50]} Qxf6 {[%emt 0:00:06]} 12. O-O {[%emt 0:01:42]} Bg4 {[%emt 0:09:
09]} 13. Rb1 {[%emt 0:04:49]} Rab8 {[%emt 0:06:04]} 14. Qd2 {[%emt 0:05:10]}
Bxf3 {[%emt 0:05:33]} 15. Bxf3 {[%emt 0:00:09]} Qd6 {[%emt 0:00:39]} 16. Qa2 {
[%emt 0:05:34]} b6 {[%emt 0:08:01]} 17. Rfd1 {[%emt 0:02:36]} Rbd8 {[%emt 0:01:
42]} 18. e3 {[%emt 0:02:36]} Na5 {[%emt 0:04:39]} 19. d4 {[%emt 0:01:31]} c5 {
[%emt 0:01:51]} 20. a4 {[%emt 0:01:29]} Kg7 {[%emt 0:07:31]} 21. Qe2 {[%emt 0:
10:13]} Rfe8 {[%emt 0:03:20]} 22. Qb5 {[%emt 0:07:30]} Qf6 {[%emt 0:03:29]} 23.
Kg2 {[%emt 0:01:10]} cxd4 {[%emt 0:00:22]} 24. cxd4 {[%emt 0:00:07]} exd4 {
[%emt 0:00:20]} 25. Rxd4 {[%emt 0:02:35]} Rxd4 {[%emt 0:02:32]} 26. Qxe8 {
[%emt 0:00:31]} Rd2 {[%emt 0:01:12]} 27. Rb4 {[%emt 0:10:54]} Nb7 {[%emt 0:13:
11]} 28. Rf4 {[%emt 0:03:28]} Nd6 {[%emt 0:00:06]} 29. Rxf6 {[%emt 0:09:12]}
Nxe8 {[%emt 0:00:07]} 30. Rc6 {[%emt 0:00:08]} Rd7 {[%emt 0:03:04]} 31. Rc8 {
[%emt 0:00:31]} Nc7 {[%emt 0:00:29]} 32. Bc6 {[%emt 0:04:13]} Re7 {[%emt 0:00:
07]} 33. e4 {[%emt 0:01:46]} Ne6 {[%emt 0:01:04]} 34. f4 {[%emt 0:00:56]} g5 {
[%emt 0:05:42]} 35. Kf3 {[%emt 0:01:57]} gxf4 {[%emt 0:03:53]} 36. gxf4 {
[%emt 0:00:05]} Nd4+ {[%emt 0:00:14]} 37. Ke3 {[%emt 0:00:07]} Nxc6 {[%emt 0:
00:11]} 38. Rxc6 {[%emt 0:00:05]} Re6 {[%emt 0:02:04]} 39. Rc7 {[%emt 0:00:50]}
Rh6 {[%emt 0:01:12]} 40. e5 {[%emt 0:02:06]} Rh3+ {[%emt 0:04:50]} 41. Ke4 {
[%emt 0:00:08]} Rxh2 {[%emt 0:00:20]} 42. f5 {[%emt 0:04:24]} Re2+ {[%emt 0:00:
59]} 43. Kf4 {[%emt 0:00:06]} Rf2+ {[%emt 0:00:21]} 44. Kg4 {[%emt 0:00:13]}
h5+ {[%emt 0:05:28]} 45. Kg5 {[%emt 0:01:03]} Rg2+ {[%emt 0:04:44]} 46. Kxh5 {
[%emt 0:00:33]} Kf8 {[%emt 0:00:21]} 47. f6 {[%emt 0:04:11]} Ke8 {[%emt 0:00:
19]} 48. Re7+ {[%emt 0:00:06]} Kd8 {[%emt 0:00:13]} 49. Rxf7 {[%emt 0:00:26]}
Re2 {[%emt 0:00:23]} 50. Re7 {[%emt 0:00:10]} a6 {[%emt 0:00:27]} 51. Kg6 {
[%emt 0:00:16]} b5 {[%emt 0:00:11]} 52. axb5 {[%emt 0:00:53]} axb5 {[%emt 0:00:
04]} 53. Kf5 {[%emt 0:00:07]} 1-0

[Event "Limburg Open 2022"]
[Site "Maastricht"]
[Date "2022.06.03"]
[Round "1.4"]
[White "Klinova, Masha"]
[Black "Dardha, Daniel"]
[Result "0-1"]
[ECO "B30"]
[WhiteElo "2255"]
[BlackElo "2555"]
[PlyCount "128"]
[EventDate "2022.06.03"]
[EventType "swiss"]
[EventRounds "7"]
[EventCountry "NED"]
[SourceTitle "Limburg Open"]
[Source "Limburg Open"]
[SourceDate "2022.06.06"]
[SourceVersion "7"]
[SourceVersionDate "2022.06.06"]
[SourceQuality "1"]
[TimeControl "7200+15"]

1. e4 {[%emt 0:00:03]} c5 {[%emt 0:03:11]} 2. Nf3 {[%emt 0:00:10]} Nc6 {
[%emt 0:00:23]} 3. Bb5 {[%emt 0:00:19]} e6 {[%emt 0:00:50]} 4. Bxc6 {[%emt 0:
00:41]} bxc6 {[%emt 0:00:51]} 5. O-O {[%emt 0:00:05]} d6 {[%emt 0:01:04]} 6.
Re1 {[%emt 0:02:51]} Ne7 {[%emt 0:03:48]} 7. b3 {[%emt 0:06:27]} Ng6 {[%emt 0:
05:10]} 8. Bb2 {[%emt 0:00:18]} e5 {[%emt 0:02:08]} 9. c3 {[%emt 0:00:05]} Nf4
{[%emt 0:12:28]} 10. d4 {[%emt 0:02:37]} Qf6 {[%emt 0:06:08]} 11. Bc1 {[%emt 0:
05:09]} g5 {[%emt 0:04:11]} 12. Bxf4 {[%emt 0:05:39]} gxf4 {[%emt 0:01:59]} 13.
dxe5 {[%emt 0:00:15]} dxe5 {[%emt 0:00:26]} 14. Kh1 {[%emt 0:05:36]} Bg4 {
[%emt 0:04:52]} 15. Nbd2 {[%emt 0:01:40]} Rg8 {[%emt 0:04:44]} 16. Qe2 {
[%emt 0:01:12]} Rg6 {[%emt 0:07:29]} 17. Nc4 {[%emt 0:04:09]} Bd6 {[%emt 0:01:
52]} 18. Nxd6+ {[%emt 0:08:47]} Qxd6 {[%emt 0:00:08]} 19. Rad1 {[%emt 0:00:20]}
Qf6 {[%emt 0:07:51]} 20. Rd3 {[%emt 0:04:47]} Kf8 {[%emt 0:09:49]} 21. Qf1 {
[%emt 0:13:14]} Kg7 {[%emt 0:07:11]} 22. h3 {[%emt 0:05:18]} Be6 {[%emt 0:04:
13]} 23. c4 {[%emt 0:00:23]} Rg8 {[%emt 0:01:44]} 24. Red1 {[%emt 0:09:04]} Kh8
{[%emt 0:02:53]} 25. Ne1 {[%emt 0:21:26]} Qh4 {[%emt 0:00:47]} 26. Kh2 {
[%emt 0:03:43]} f5 {[%emt 0:06:57]} 27. Qe2 {[%emt 0:04:10]} f3 {[%emt 0:03:08]
} 28. Rxf3 {[%emt 0:01:18]} fxe4 {[%emt 0:04:30]} 29. Rg3 {[%emt 0:00:07]} Rxg3
{[%emt 0:02:54]} 30. fxg3 {[%emt 0:00:05]} Rxg3 {[%emt 0:01:11]} 31. Rd8+ {
[%emt 0:06:41]} Kg7 {[%emt 0:03:12]} 32. Ra8 {[%emt 0:00:12]} Bxh3 {[%emt 0:02:
41]} 33. Rxa7+ {[%emt 0:01:31]} Kg6 {[%emt 0:00:35]} 34. Kg1 {[%emt 0:00:06]}
Bf5 {[%emt 0:01:57]} 35. Ra8 {[%emt 0:02:43]} Kh6 {[%emt 0:01:48]} 36. Rf8 {
[%emt 0:01:30]} Bg6 {[%emt 0:00:32]} 37. Qf2 {[%emt 0:01:56]} Qg5 {[%emt 0:01:
24]} 38. Rc8 {[%emt 0:02:15]} e3 {[%emt 0:01:39]} 39. Qf8+ {[%emt 0:00:27]} Kh5
{[%emt 0:00:02]} 40. Qd8 {[%emt 0:02:27]} Qf5 {[%emt 0:00:38]} 41. Qf8 {
[%emt 0:00:12]} Qb1 {[%emt 0:00:19]} 42. Qf1 {[%emt 0:00:06]} Qxa2 {[%emt 0:00:
44]} 43. Rxc6 {[%emt 0:00:12]} Qxb3 {[%emt 0:00:19]} 44. Rxc5 {[%emt 0:00:15]}
Qc3 {[%emt 0:00:14]} 45. Qe2+ {[%emt 0:00:11]} Kh6 {[%emt 0:00:03]} 46. Rc6 {
[%emt 0:00:13]} Qd2 {[%emt 0:00:10]} 47. Qf1 {[%emt 0:00:08]} Qd4 {[%emt 0:00:
26]} 48. Qe2 {[%emt 0:00:44]} Rg5 {[%emt 0:00:19]} 49. Nf3 {[%emt 0:00:05]}
Qa1+ {[%emt 0:00:11]} 50. Qf1 {[%emt 0:00:12]} Qxf1+ {[%emt 0:00:21]} 51. Kxf1
{[%emt 0:00:04]} Rh5 {[%emt 0:00:16]} 52. Ke2 {[%emt 0:00:10]} e4 {[%emt 0:00:
07]} 53. Ne1 {[%emt 0:00:29]} Rh1 {[%emt 0:00:16]} 54. Nc2 {[%emt 0:00:05]} Kg5
{[%emt 0:00:07]} 55. Nxe3 {[%emt 0:00:09]} Ra1 {[%emt 0:00:11]} 56. Kf2 {
[%emt 0:00:41]} Kf4 {[%emt 0:00:32]} 57. Nd5+ {[%emt 0:00:08]} Ke5 {[%emt 0:00:
01]} 58. Ne7 {[%emt 0:00:31]} Ra2+ {[%emt 0:00:17]} 59. Kg3 {[%emt 0:00:13]}
Bf7 {[%emt 0:00:15]} 60. Rh6 {[%emt 0:00:15]} e3 {[%emt 0:00:30]} 61. Rxh7 {
[%emt 0:00:19]} Bxc4 {[%emt 0:00:12]} 62. Rh1 {[%emt 0:00:03]} Ke4 {[%emt 0:00:
14]} 63. Ng6 {[%emt 0:00:25]} Ba6 {[%emt 0:00:15]} 64. Nf4 {[%emt 0:00:13]} Ra5
{[%emt 0:00:08]} 0-1

[Event "Limburg Open 2022"]
[Site "Maastricht"]
[Date "2022.06.03"]
[Round "1.5"]
[White "Van Foreest, Lucas"]
[Black "Warakomska, Anna"]
[Result "1-0"]
[ECO "D13"]
[WhiteElo "2553"]
[BlackElo "2253"]
[PlyCount "63"]
[EventDate "2022.06.03"]
[EventType "swiss"]
[EventRounds "7"]
[EventCountry "NED"]
[SourceTitle "Limburg Open"]
[Source "Limburg Open"]
[SourceDate "2022.06.06"]
[SourceVersion "7"]
[SourceVersionDate "2022.06.06"]
[SourceQuality "1"]
[TimeControl "7200+15"]

1. d4 {[%emt 0:01:50]} d5 {[%emt 0:00:26]} 2. c4 {[%emt 0:00:26]} c6 {[%emt 0:
00:03]} 3. Nf3 {[%emt 0:00:06]} Nf6 {[%emt 0:00:26]} 4. cxd5 {[%emt 0:00:25]}
cxd5 {[%emt 0:00:05]} 5. Nc3 {[%emt 0:00:04]} Nc6 {[%emt 0:00:24]} 6. Bf4 {
[%emt 0:00:20]} a6 {[%emt 0:01:00]} 7. Rc1 {[%emt 0:00:43]} Bf5 {[%emt 0:03:18]
} 8. e3 {[%emt 0:02:49]} Rc8 {[%emt 0:01:30]} 9. Ne5 {[%emt 0:04:22]} Nxe5 {
[%emt 0:17:03]} 10. dxe5 {[%emt 0:08:11]} Ne4 {[%emt 0:00:55]} 11. Nxe4 {
[%emt 0:00:06]} Rxc1 {[%emt 0:03:26]} 12. Qxc1 {[%emt 0:00:49]} dxe4 {[%emt 0:
08:47]} 13. Be2 {[%emt 0:08:20]} Qa5+ {[%emt 0:04:44]} 14. Kf1 {[%emt 0:00:11]}
g6 {[%emt 0:03:14]} 15. a3 {[%emt 0:08:47]} Bg7 {[%emt 0:02:15]} 16. b4 {
[%emt 0:00:40]} Qd8 {[%emt 0:02:04]} 17. g4 {[%emt 0:00:57]} Be6 {[%emt 0:00:
51]} 18. Kg2 {[%emt 0:00:09]} O-O {[%emt 0:02:11]} 19. h3 {[%emt 0:05:15]} Qc8
{[%emt 0:09:20]} 20. Rd1 {[%emt 0:10:01]} Rd8 {[%emt 0:07:08]} 21. Rxd8+ {
[%emt 0:00:39]} Qxd8 {[%emt 0:00:08]} 22. Qc5 {[%emt 0:00:03]} h6 {[%emt 0:03:
01]} 23. Bc4 {[%emt 0:06:34]} Qd7 {[%emt 0:19:39]} 24. Bxe6 {[%emt 0:00:12]}
Qxe6 {[%emt 0:00:06]} 25. b5 {[%emt 0:00:06]} h5 {[%emt 0:05:17]} 26. gxh5 {
[%emt 0:01:55]} gxh5 {[%emt 0:00:07]} 27. b6 {[%emt 0:00:04]} Bf8 {[%emt 0:06:
14]} 28. Qc7 {[%emt 0:00:39]} Qd5 {[%emt 0:01:20]} 29. Qc8 {[%emt 0:00:07]} Kg7
{[%emt 0:08:30]} 30. Bh6+ {[%emt 0:00:09]} Kxh6 {[%emt 0:00:05]} 31. Qxf8+ {
[%emt 0:00:03]} Kg6 {[%emt 0:00:08]} 32. Qxe7 {[%emt 0:00:01]} 1-0

[Event "Limburg Open 2022"]
[Site "Maastricht"]
[Date "2022.06.03"]
[Round "1.6"]
[White "Sidiropoulos, Nikos"]
[Black "Ernst, Sipke"]
[Result "0-1"]
[ECO "D35"]
[WhiteElo "2247"]
[BlackElo "2538"]
[PlyCount "62"]
[EventDate "2022.06.03"]
[EventType "swiss"]
[EventRounds "7"]
[EventCountry "NED"]
[SourceTitle "Limburg Open"]
[Source "Limburg Open"]
[SourceDate "2022.06.06"]
[SourceVersion "7"]
[SourceVersionDate "2022.06.06"]
[SourceQuality "1"]
[TimeControl "7200+15"]

1. d4 {[%emt 0:00:03]} Nf6 {[%emt 0:00:13]} 2. c4 {[%emt 0:00:04]} e6 {[%emt 0:
00:05]} 3. Nf3 {[%emt 0:00:04]} d5 {[%emt 0:00:47]} 4. cxd5 {[%emt 0:00:12]}
exd5 {[%emt 0:00:04]} 5. Nc3 {[%emt 0:00:04]} c6 {[%emt 0:00:04]} 6. Qc2 {
[%emt 0:00:10]} g6 {[%emt 0:00:09]} 7. Bg5 {[%emt 0:00:16]} Be7 {[%emt 0:00:07]
} 8. e3 {[%emt 0:00:10]} Bf5 {[%emt 0:00:11]} 9. Bd3 {[%emt 0:00:05]} Bxd3 {
[%emt 0:00:04]} 10. Qxd3 {[%emt 0:00:05]} Nbd7 {[%emt 0:00:04]} 11. Bh6 {
[%emt 0:03:10]} Ng4 {[%emt 0:00:04]} 12. Bf4 {[%emt 0:00:16]} O-O {[%emt 0:00:
21]} 13. h3 {[%emt 0:01:04]} Ngf6 {[%emt 0:00:06]} 14. O-O-O {[%emt 0:16:44]}
Qa5 {[%emt 0:04:04]} 15. Kb1 {[%emt 0:00:24]} b5 {[%emt 0:04:25]} 16. Ne5 {
[%emt 0:06:25]} Nxe5 {[%emt 0:03:01]} 17. Bxe5 {[%emt 0:05:16]} Nd7 {[%emt 0:
00:16]} 18. h4 {[%emt 0:05:57]} b4 {[%emt 0:00:09]} 19. Ne2 {[%emt 0:02:00]} c5
{[%emt 0:01:33]} 20. h5 {[%emt 0:25:38]} c4 {[%emt 0:00:07]} 21. Qc2 {[%emt 0:
00:18]} g5 {[%emt 0:19:25]} 22. Qf5 {[%emt 0:11:36]} Qa4 {[%emt 0:00:48]} 23.
h6 {[%emt 0:04:46]} Qc6 {[%emt 0:07:39]} 24. Ng3 {[%emt 0:04:30]} f6 {[%emt 0:
04:25]} 25. Bf4 {[%emt 0:01:02]} Rf7 {[%emt 0:00:57]} 26. e4 {[%emt 0:02:43]}
gxf4 {[%emt 0:03:26]} 27. exd5 {[%emt 0:00:07]} Qa4 {[%emt 0:01:05]} 28. Ne2 {
[%emt 0:12:21]} Nb6 {[%emt 0:03:30]} 29. Nxf4 {[%emt 0:04:58]} b3 {[%emt 0:03:
27]} 30. a3 {[%emt 0:00:55]} Bxa3 {[%emt 0:01:12]} 31. Rh3 {[%emt 0:10:13]} Bd6
{[%emt 0:01:17]} 0-1

[Event "Limburg Open 2022"]
[Site "Maastricht"]
[Date "2022.06.03"]
[Round "1.7"]
[White "Gupta, Sankalp"]
[Black "Dorst, Johannes"]
[Result "1/2-1/2"]
[ECO "E61"]
[WhiteElo "2505"]
[BlackElo "2246"]
[PlyCount "68"]
[EventDate "2022.06.03"]
[EventType "swiss"]
[EventRounds "7"]
[EventCountry "NED"]
[SourceTitle "Limburg Open"]
[Source "Limburg Open"]
[SourceDate "2022.06.06"]
[SourceVersion "7"]
[SourceVersionDate "2022.06.06"]
[SourceQuality "1"]
[TimeControl "7200+15"]

1. Nf3 {[%emt 0:00:48]} Nf6 {[%emt 0:00:15]} 2. e3 {[%emt 0:02:19]} c5 {
[%emt 0:02:04]} 3. c4 {[%emt 0:02:08]} g6 {[%emt 0:01:09]} 4. d4 {[%emt 0:01:
20]} Bg7 {[%emt 0:01:35]} 5. Nc3 {[%emt 0:00:19]} O-O {[%emt 0:01:10]} 6. d5 {
[%emt 0:04:41]} e6 {[%emt 0:04:40]} 7. Bd3 {[%emt 0:03:54]} exd5 {[%emt 0:00:
20]} 8. cxd5 {[%emt 0:00:03]} d6 {[%emt 0:02:05]} 9. h3 {[%emt 0:00:16]} Na6 {
[%emt 0:08:29]} 10. O-O {[%emt 0:04:04]} Nc7 {[%emt 0:00:32]} 11. e4 {[%emt 0:
00:15]} b5 {[%emt 0:05:51]} 12. Nxb5 {[%emt 0:00:54]} Nxb5 {[%emt 0:00:07]} 13.
Bxb5 {[%emt 0:00:04]} Nxe4 {[%emt 0:01:22]} 14. Qa4 {[%emt 0:04:15]} Rb8 {
[%emt 0:02:33]} 15. Bc6 {[%emt 0:00:36]} Rb4 {[%emt 0:04:48]} 16. Qxa7 {
[%emt 0:00:29]} f5 {[%emt 0:08:41]} 17. a3 {[%emt 0:32:27]} Rb3 {[%emt 0:04:12]
} 18. Qa4 {[%emt 0:27:12]} Rxf3 {[%emt 0:05:38]} 19. gxf3 {[%emt 0:00:57]} Ng5
{[%emt 0:02:19]} 20. Kg2 {[%emt 0:04:41]} f4 {[%emt 0:01:14]} 21. Rh1 {[%emt 0:
00:19]} Nxh3 {[%emt 0:09:55]} 22. Rxh3 {[%emt 0:01:43]} Bxh3+ {[%emt 0:01:41]}
23. Kxh3 {[%emt 0:00:02]} Qg5 {[%emt 0:02:02]} 24. Qd1 {[%emt 0:05:46]} Bd4 {
[%emt 0:16:54]} 25. Qe1 {[%emt 0:00:02]} Rf5 {[%emt 0:01:05]} 26. Bd7 {[%emt 0:
00:01]} Re5 {[%emt 0:14:14]} 27. Qf1 {[%emt 0:01:43]} Qh5+ {[%emt 0:07:02]} 28.
Kg2 {[%emt 0:00:02]} Rg5+ {[%emt 0:04:09]} 29. Bg4 {[%emt 0:00:02]} Rxg4+ {
[%emt 0:00:09]} 30. fxg4 {[%emt 0:00:04]} Qxg4+ {[%emt 0:00:06]} 31. Kh1 {
[%emt 0:00:16]} Qh4+ {[%emt 0:00:54]} 32. Kg2 {[%emt 0:00:26]} Qg4+ {[%emt 0:
00:41]} 33. Kh1 {[%emt 0:00:02]} Qh4+ {[%emt 0:01:06]} 34. Kg2 {[%emt 0:00:05]}
Qg4+ {[%emt 0:04:43]} 1/2-1/2

[Event "Limburg Open 2022"]
[Site "Maastricht"]
[Date "2022.06.03"]
[Round "1.8"]
[White "Pham, Khoi"]
[Black "Zwirs, Nico"]
[Result "0-1"]
[ECO "B60"]
[WhiteElo "2244"]
[BlackElo "2475"]
[PlyCount "106"]
[EventDate "2022.06.03"]
[EventType "swiss"]
[EventRounds "7"]
[EventCountry "NED"]
[SourceTitle "Limburg Open"]
[Source "Limburg Open"]
[SourceDate "2022.06.06"]
[SourceVersion "7"]
[SourceVersionDate "2022.06.06"]
[SourceQuality "1"]
[TimeControl "7200+15"]

1. e4 {[%emt 0:00:03]} c5 {[%emt 0:00:39]} 2. Nf3 {[%emt 0:00:06]} d6 {[%emt 0:
00:40]} 3. d4 {[%emt 0:00:11]} cxd4 {[%emt 0:00:02]} 4. Nxd4 {[%emt 0:00:06]}
Nf6 {[%emt 0:00:09]} 5. Nc3 {[%emt 0:00:06]} a6 {[%emt 0:01:02]} 6. Bg5 {
[%emt 0:00:22]} Nc6 {[%emt 0:03:26]} 7. Bxf6 {[%emt 0:08:51]} gxf6 {[%emt 0:00:
37]} 8. Nxc6 {[%emt 0:08:55]} bxc6 {[%emt 0:00:09]} 9. Bc4 {[%emt 0:00:55]} Qa5
{[%emt 0:02:55]} 10. Qe2 {[%emt 0:12:41]} h5 {[%emt 0:10:04]} 11. Bb3 {[%emt 0:
08:40]} Bd7 {[%emt 0:05:58]} 12. O-O-O {[%emt 0:03:25]} h4 {[%emt 0:14:08]} 13.
f4 {[%emt 0:05:11]} Rb8 {[%emt 0:12:21]} 14. Qc4 {[%emt 0:18:04]} e6 {[%emt 0:
05:26]} 15. Qd4 {[%emt 0:04:25]} Be7 {[%emt 0:10:08]} 16. Rhe1 {[%emt 0:07:07]}
Qb6 {[%emt 0:04:53]} 17. Qd3 {[%emt 0:04:11]} Rg8 {[%emt 0:11:47]} 18. Qh3 {
[%emt 0:10:31]} Qf2 {[%emt 0:10:15]} 19. Rf1 {[%emt 0:01:18]} Qxg2 {[%emt 0:00:
55]} 20. Qe3 {[%emt 0:02:15]} Qxh2 {[%emt 0:06:41]} 21. Ne2 {[%emt 0:00:08]}
Rg2 {[%emt 0:02:19]} 22. Bc4 {[%emt 0:00:59]} d5 {[%emt 0:10:06]} 23. Rh1 {
[%emt 0:01:24]} Rxe2 {[%emt 0:00:17]} 24. Bxe2 {[%emt 0:00:08]} Qg3 {[%emt 0:
00:18]} 25. Qxg3 {[%emt 0:03:58]} hxg3 {[%emt 0:00:01]} 26. Rh8+ {[%emt 0:00:
12]} Bf8 {[%emt 0:00:01]} 27. exd5 {[%emt 0:01:36]} cxd5 {[%emt 0:00:05]} 28.
Rg1 {[%emt 0:00:52]} a5 {[%emt 0:01:25]} 29. Rxg3 {[%emt 0:00:13]} Ke7 {
[%emt 0:00:14]} 30. Bh5 {[%emt 0:01:51]} e5 {[%emt 0:01:01]} 31. Rh7 {[%emt 0:
01:16]} exf4 {[%emt 0:03:13]} 32. Rxf7+ {[%emt 0:02:21]} Ke6 {[%emt 0:00:14]}
33. Rg8 {[%emt 0:01:55]} Bd6 {[%emt 0:00:11]} 34. Rxb8 Bxb8 {[%emt 0:00:01]}
35. Rf8 {[%emt 0:02:41]} Bc7 {[%emt 0:03:59]} 36. Kd2 {[%emt 0:00:51]} Ke7 {
[%emt 0:01:19]} 37. Rf7+ {[%emt 0:00:36]} Ke6 {[%emt 0:00:17]} 38. Rg7 {
[%emt 0:01:41]} Kd6 {[%emt 0:00:04]} 39. Bg4 {[%emt 0:00:27]} f5 {[%emt 0:00:
46]} 40. Bf3 {[%emt 0:00:15]} Be6 {[%emt 0:00:19]} 41. Kd3 {[%emt 0:00:49]} Bb6
{[%emt 0:00:13]} 42. Bh5 {[%emt 0:02:38]} Bc5 {[%emt 0:00:27]} 43. c3 {[%emt 0:
02:29]} Bd7 {[%emt 0:00:02]} 44. Bf7 {[%emt 0:00:40]} Bb5+ {[%emt 0:00:08]} 45.
Kd2 {[%emt 0:00:57]} Be3+ {[%emt 0:00:16]} 46. Kd1 {[%emt 0:00:22]} f3 {
[%emt 0:00:03]} 47. Bh5 {[%emt 0:01:20]} f2 {[%emt 0:00:01]} 48. Be2 {[%emt 0:
00:01]} f1=Q+ {[%emt 0:00:02]} 49. Bxf1 {[%emt 0:00:01]} Bxf1 {[%emt 0:00:01]}
50. b4 {[%emt 0:00:26]} axb4 {[%emt 0:00:06]} 51. cxb4 {[%emt 0:00:02]} Bb5 {
[%emt 0:00:58]} 52. Rb7 {[%emt 0:00:19]} Bc4 {[%emt 0:00:28]} 53. a4 {[%emt 0:
00:04]} f4 {[%emt 0:00:06]} 0-1